bitfinex/quotes_ETHUSD_20260304
["timestamp","ask_amount","ask_price","bid_price","bid_amount"]
[1772612846193,1.24520595,2007.7,2007.1,6.76968706]
[1772612846383,6.69759595,2007.7,2007.1,6.76968706]
[1772612847285,0.002,2007.6,2007.1,6.76968706]
[1772612848793,0.002,2007.6,2007.2,5.52415284]
[1772612848995,0.002,2007.8,2007.2,5.52415284]
[1772612849289,5.45439,2007.8,2007.2,5.52415284]
[1772612849998,5.45439,2007.8,2007.1,1.555]
[1772612850584,5.45439,2007.8,2007.0,6.7697452]
[1772612850787,6.69784409,2007.3,2006.7,6.77097843]
[1772612850976,6.69784409,2007.3,2006.7,6.77097602]
[1772612851187,6.69784409,2007.3,2006.7,5.52515284]
[1772612851385,6.69784409,2007.3,2006.7,0.001]
[1772612851584,6.69784409,2007.3,2006.7,1.24682493]
[1772612852192,6.69784409,2007.3,2006.7,0.001]
[1772612852896,5.45239,2007.2,2006.7,0.001]
[1772612853674,1.24394877,2006.9,2006.5,0.001]
[1772612853988,5.45239,2006.8,2006.5,0.001]
[1772612855036,6.69790614,2007.2,2006.5,0.001]
[1772612856105,5.45239,2007.0,2006.5,0.001]
[1772612857104,1.24570232,2006.9,2006.5,0.001]
[1772612858003,6.69809232,2006.9,2006.5,0.001]
[1772612859605,6.69809232,2006.9,2006.7,0.001]
[1772612859790,0.002,2007.1,2006.7,0.001]
[1772612860804,0.002,2007.1,2006.7,5.52515284]
[1772612861705,0.002,2007.1,2006.7,0.001]
[1772612861905,5.45439,2007.1,2006.7,0.001]
[1772612862996,5.45439,2007.1,2006.5,0.001]
[1772612863504,5.45439,2007.1,2006.5,6.7710971]
[1772612863699,1.24564025,2007.0,2006.5,5.52515284]
[1772612863898,1.24564025,2007.0,2006.5,6.77108983]
[1772612864094,1.24564025,2007.0,2006.5,5.52515284]
[1772612864493,1.24564025,2007.0,2006.5,6.77109678]
[1772612864706,1.24564025,2007.0,2006.5,5.52515284]
[1772612865208,6.69803025,2007.0,2006.5,0.001]
[1772612865708,6.6981544,2006.8,2006.2,0.001]
[1772612866278,5.45239,2006.6,2006.2,0.001]
[1772612867800,1.24595066,2006.5,2006.2,0.001]
[1772612868107,1.24595066,2006.5,2005.8,0.001]
[1772612868108,5.45239,2006.4,2005.8,0.001]
[1772612868681,5.45239,2006.4,2005.8,1.24738018]
[1772612869082,2.93395066,2006.5,2005.8,6.76227175]
[1772612869911,8.04242722,2006.5,2005.8,6.76227175]
[1772612870094,5.10847656,2006.4,2005.8,0.001]
[1772612870696,5.10847656,2006.0,2005.5,0.001]
[1772612870903,5.10847656,2005.9,2005.3,0.001]
[1772612871909,6.35486204,2005.8,2005.3,0.001]
[1772612873924,6.35486204,2005.8,2005.5,0.001]
[1772612874323,6.35486204,2005.8,2005.3,0.001]
[1772612874622,5.10847656,2005.7,2005.3,0.001]
[1772612875913,2.93938548,2005.8,2005.3,0.001]
[1772612876299,5.10847656,2005.7,2005.3,0.001]
[1772612876924,2.93938548,2005.8,2005.3,0.001]
[1772612877394,8.04786204,2005.8,2005.3,0.001]
[1772612877617,6.35486204,2005.8,2005.3,0.001]
[1772612877814,1.24638548,2005.8,2005.3,5.51589157]
[1772612878221,6.35486204,2005.8,2005.3,0.001]
[1772612878723,6.35486204,2005.8,2005.3,1.24768837]
[1772612879026,6.35486204,2005.8,2005.3,0.001]
[1772612879213,1.24538548,2005.8,2005.3,1.24769063]
[1772612879397,2.94032865,2005.9,2005.3,1.24769063]
[1772612879600,2.94032865,2005.9,2005.3,6.7625822]
[1772612880202,11.78779257,2006.3,2005.3,6.7625822]
[1772612880404,5.10847656,2006.2,2005.3,6.7625822]
[1772612880734,5.10847656,2006.1,2005.3,1.24767494]
[1772612881032,5.10847656,2006.1,2005.3,6.76256651]
[1772612882233,6.35473777,2006.0,2005.3,6.76256651]
[1772612882539,5.10847656,2005.6,2005.1,0.001]
[1772612882827,5.10847656,2005.3,2004.7,0.001]
[1772612883027,5.10847656,2004.8,2004.7,0.001]
[1772612883427,5.10847656,2004.8,2004.6,0.001]
[1772612883828,5.10847656,2004.8,2004.5,0.001]
[1772612884234,1.24706938,2004.7,2004.5,0.001]
[1772612884435,6.35553106,2004.8,2004.5,0.001]
[1772612884833,1.24692438,2005.0,2004.5,0.001]
[1772612885137,1.24692438,2005.0,2004.4,0.001]
[1772612886337,6.35540094,2005.0,2004.4,0.001]
[1772612887122,1.24675842,2005.2,2004.4,5.51589157]
[1772612887644,1.24670145,2005.3,2004.4,5.51589157]
[1772612887948,5.10847656,2005.6,2004.5,5.51489157]
[1772612887949,6.35502965,2005.6,2004.5,5.51489157]
[1772612888114,5.10847656,2005.4,2004.4,5.51589157]
[1772612888314,5.10847656,2005.4,2004.5,1.24719381]
[1772612888315,1.24669625,2005.3,2004.5,1.24719381]
[1772612888743,6.35517281,2005.3,2004.5,1.24719381]
[1772612888950,6.35517281,2005.3,2004.4,10.50466682]
[1772612888951,6.80747656,2005.2,2004.4,6.76313251]
[1772612889249,2.94669625,2005.3,2004.4,6.76313251]
[1772612889449,6.35514944,2005.4,2004.4,6.76313251]
[1772612889920,6.35514944,2005.4,2004.4,1.2482429]
[1772612889921,5.10847656,2005.3,2004.4,1.2482429]
[1772612890115,5.10847656,2005.3,2004.4,6.76313447]
[1772612890317,2.94667288,2005.4,2004.4,6.76313447]
[1772612890916,1.24662873,2005.5,2004.5,5.51489157]
[1772612891116,6.35503527,2005.6,2004.5,5.51489157]
[1772612892587,6.35503527,2005.6,2004.6,6.76202316]
[1772612893519,4.98563799,2005.8,2004.6,6.76202316]
[1772612893951,10.09411455,2005.8,2004.6,6.76202316]
[1772612894155,5.10847656,2005.7,2004.6,6.76202316]
[1772612894326,5.10847656,2005.7,2004.7,7.07289157]
[1772612894523,6.35498633,2005.6,2004.4,7.85280186]
[1772612894821,5.10847656,2005.0,2004.4,1.24823945]
[1772612895133,5.10847656,2005.4,2004.4,1.24823945]
[1772612896634,6.35517281,2005.3,2004.4,6.76313102]
[1772612896836,5.10847656,2005.6,2004.4,6.76313102]
[1772612898449,5.10847656,2005.6,2004.4,3.58514974]
[1772612898775,4.98567442,2005.8,2004.7,5.09832611]
[1772612898926,4.98567442,2005.8,2004.6,2.98722954]
[1772612898927,5.08047472,2005.6,2004.6,8.68336799]
[1772612899125,5.08047472,2005.6,2004.6,7.9044577]
[1772612899325,5.08047472,2005.6,2004.6,5.09932611]
[1772612899523,5.08047472,2005.3,2004.6,0.001]
[1772612900475,1.702,2005.5,2004.6,5.09932611]
[1772612900640,1.24663408,2005.4,2004.7,1.24706938]
[1772612901863,6.62295699,2005.4,2004.6,6.34641903]
[1772612902553,1.24649749,2005.7,2004.6,6.34641903]
[1772612903430,1.24649749,2005.7,2004.7,7.47291215]
[1772612903661,1.24649749,2005.7,2004.9,5.13600186]
[1772612904660,1.24649749,2005.7,2005.0,1.24688279]
[1772612904829,1.24012656,2005.9,2005.1,5.13600186]
[1772612905030,2.48646694,2005.9,2005.1,5.13600186]
[1772612905637,2.48645155,2005.9,2005.1,5.13600186]
[1772612906037,1.24012656,2005.9,2005.1,5.13600186]
[1772612906243,2.48645464,2005.9,2005.1,5.13600186]
[1772612906758,1.24012656,2005.9,2005.3,5.13600186]
[1772612906931,2.48645612,2005.9,2005.3,5.13600186]
[1772612907851,7.86277903,2005.9,2005.1,1.24678616]
[1772612908051,7.86277903,2005.9,2005.1,2.80678616]
[1772612908233,7.86277903,2005.9,2005.1,7.94278802]
[1772612908961,7.86277903,2005.9,2005.1,6.38278802]
[1772612909868,5.37632291,2005.8,2005.1,5.13600186]
[1772612910163,5.37632291,2005.8,2005.0,2.80687317]
[1772612910350,5.37632291,2005.8,2005.0,7.94287503]
[1772612910935,0.002,2005.7,2005.1,5.13600186]
[1772612912872,0.002,2005.7,2005.2,6.38276028]
[1772612916289,2.48647053,2005.9,2005.2,6.38276028]
[1772612916501,4.98453071,2006.3,2005.4,5.13600186]
[1772612916502,1.24816987,2006.2,2005.4,5.13600186]
[1772612916651,1.24816987,2006.2,2005.6,5.13600186]
[1772612916847,0.002,2006.2,2005.6,5.13600186]
[1772612917384,0.002,2006.2,2005.7,5.13600186]
[1772612917764,0.002,2006.4,2005.7,5.13600186]
[1772612918262,0.002,2006.4,2005.8,1.24638548]
[1772612918453,0.002,2006.4,2005.9,5.13600186]
[1772612918848,0.002,2006.4,2006.0,5.13600186]
[1772612920261,0.002,2006.4,2006.0,6.38222211]
[1772612920981,0.002,2006.4,2006.0,7.94722211]
[1772612922380,0.002,2006.4,2006.0,1.565]
[1772612922596,0.002,2006.4,2005.9,1.566]
[1772612922974,0.002,2006.4,2005.9,6.70200186]
[1772612924078,0.002,2006.4,2005.9,1.566]
[1772612924262,0.002,2006.4,2005.8,1.24632994]
[1772612924466,0.002,2006.4,2006.0,1.567]
[1772612924668,0.002,2006.4,2006.1,5.13600186]
[1772612925981,0.002,2006.4,2006.0,2.81325606]
[1772612926184,0.002,2006.4,2006.0,1.24625606]
[1772612926362,0.002,2006.4,2006.1,2.81418099]
[1772612926764,0.002,2006.6,2006.2,5.13600186]
[1772612926984,0.004,2006.6,2006.2,5.13600186]
[1772612927692,0.004,2006.6,2006.0,1.24621153]
[1772612927693,0.002,2006.5,2006.0,1.24621153]
[1772612927867,0.002,2006.5,2006.2,1.569]
[1772612928893,0.002,2006.5,2005.9,5.13600186]
[1772612929086,0.002,2006.5,2005.5,3.57922343]
[1772612929087,4.97273743,2006.5,2005.8,1.569]
[1772612929886,4.97273743,2006.5,2005.8,6.42993794]
[1772612930151,0.002,2006.5,2005.9,4.86093794]
[1772612931380,0.002,2006.5,2006.0,1.24626121]
[1772612931578,4.97273743,2006.5,2005.9,1.571]
[1772612932189,4.97073743,2006.5,2005.9,1.571]
[1772612932902,0.002,2006.6,2005.9,1.571]
[1772612932903,0.002,2006.4,2006.0,4.86093794]
[1772612933604,0.002,2006.4,2006.1,1.24619909]
[1772612933818,0.002,2006.3,2005.7,9.8466477]
[1772612934096,4.97273743,2006.5,2005.8,1.572]
[1772612934296,0.002,2006.5,2005.9,4.86093794]
[1772612935811,0.002,2006.5,2006.0,6.10819915]
[1772612936114,0.002,2006.5,2006.1,4.86093794]
[1772612936312,0.002,2006.5,2006.2,1.573]
[1772612936531,0.004,2006.5,2006.2,6.43393794]
[1772612936693,0.002,2006.5,2006.2,6.43393794]
[1772612937196,0.002,2006.7,2006.3,4.86093794]
[1772612937403,0.004,2006.7,2006.3,4.86093794]
[1772612937910,0.004,2006.7,2006.4,1.24601275]
[1772612938120,0.004,2006.7,2006.3,6.10701035]
[1772612938306,4.97273743,2006.6,2006.0,5.11723038]
[1772612938616,4.97273743,2006.6,2006.1,1.574]
[1772612939419,0.002,2006.5,2006.1,1.574]
[1772612939795,6.21868809,2006.5,2006.0,6.69223038]
[1772612941221,6.21868809,2006.5,2006.0,11.55316832]
[1772612941222,0.002,2006.5,2006.0,11.55316832]
[1772612941424,0.002,2006.5,2006.0,6.69223038]
[1772612941631,4.97273743,2006.5,2006.0,1.576]
[1772612942121,6.21675018,2006.4,2006.0,1.576]
[1772612943498,6.22763387,2006.7,2006.0,2.82224656]
[1772612943499,0.002,2006.3,2006.0,2.82224656]
[1772612943721,6.2166392,2006.6,2006.0,2.82224656]
[1772612944027,0.002,2006.5,2006.0,2.82224656]
[1772612944603,0.002,2006.5,2006.0,1.576]
[1772612944604,4.97273743,2006.5,2006.0,1.576]
[1772612944802,4.97273743,2006.5,2006.0,2.82226027]
[1772612945106,4.97273743,2006.5,2006.0,1.576]
[1772612945940,4.97273743,2006.5,2006.0,0.001]
[1772612946133,1.24231314,2006.4,2005.8,0.001]
[1772612946300,6.2158744,2006.2,2005.8,0.001]
[1772612946497,4.97273743,2006.1,2005.8,0.001]
[1772612946800,4.97073743,2006.1,2005.4,2.33691029]
[1772612946995,4.97073743,2006.1,2005.3,2.33691029]
[1772612947327,4.97073743,2006.1,2005.3,1.24668054]
[1772612947489,4.97073743,2006.1,2005.2,2.82671845]
[1772612948224,1.24626121,2006.0,2005.2,2.82671845]
[1772612948534,4.97073743,2005.9,2005.2,2.82671845]
[1772612948927,4.97073743,2005.9,2005.2,1.58]
[1772612949127,4.97073743,2005.9,2005.2,2.82675258]
[1772612949365,4.97073743,2005.9,2005.7,0.001]
[1772612949559,0.001,2005.7,2005.2,1.58]
[1772612949936,0.001,2005.7,2005.2,2.82675575]
[1772612951645,1.24638548,2005.8,2005.2,2.82675575]
[1772612951646,1.24638548,2005.8,2005.2,2.82575575]
[1772612952057,1.24638548,2005.8,2005.2,2.82574503]
[1772612952058,6.21712291,2005.8,2005.2,2.82574503]
[1772612953173,6.21712291,2005.8,2005.2,1.579]
[1772612953378,4.97073743,2005.7,2005.2,2.82575821]
[1772612953681,4.97073743,2005.7,2005.2,1.584]
[1772612953834,4.97073743,2005.7,2005.1,1.584]
[1772612954976,1.246487,2005.7,2005.2,6.10769636]
[1772612955741,1.24642703,2005.8,2005.2,6.10769636]
[1772612956994,4.97073743,2005.8,2005.1,2.8318044]
[1772612957580,4.97073743,2005.8,2005.1,1.585]
[1772612957789,6.21305057,2005.8,2005.1,1.585]
[1772612958082,6.21305057,2005.8,2005.0,7.69478218]
[1772612958445,6.21305057,2005.8,2005.0,2.83384424]
[1772612958888,6.21305057,2005.8,2005.0,1.587]
[1772612959189,4.73907089,2005.6,2005.0,2.83387884]
[1772612959651,4.73907089,2005.6,2005.0,7.91156336]
[1772612959853,1.24644762,2005.7,2005.1,5.07768452]
[1772612960050,5.98534293,2006.0,2005.1,6.31999766]
[1772612960354,9.72352915,2006.3,2005.3,6.31999766]
[1772612960551,9.72352915,2006.3,2005.5,5.07768452]
[1772612960762,0.002,2006.4,2005.5,6.31999766]
[1772612960969,0.002,2006.4,2005.7,4.84110326]
[1772612962855,4.85762785,2006.4,2005.7,4.84110326]
[1772612963180,4.85562785,2006.1,2005.7,1.589]
[1772612963562,4.85562785,2006.1,2005.4,0.001]
[1772612963780,4.85562785,2006.1,2005.4,6.08871381]
[1772612963952,4.85562785,2006.1,2005.4,0.001]
[1772612964149,4.85562785,2005.9,2005.4,0.001]
[1772612964587,4.85562785,2005.9,2005.4,1.24762254]
[1772612965285,6.10182694,2006.1,2005.4,0.001]
[1772612966771,1.24617683,2006.2,2005.5,4.84110326]
[1772612966978,4.98436958,2006.3,2005.5,4.84110326]
[1772612966979,1.24612824,2006.3,2005.5,4.84110326]
[1772612967182,1.24612824,2006.3,2005.6,1.24650977]
[1772612967504,1.24612824,2006.3,2005.7,1.591]
[1772612969972,1.24612824,2006.3,2005.7,2.83739993]
[1772612970756,1.24612824,2006.3,2005.7,7.67850319]
[1772612970957,3.24805915,2006.4,2005.8,4.84110326]
[1772612972093,3.24805915,2006.4,2005.8,6.08745364]
[1772612973361,4.85562785,2006.3,2005.7,2.83940307]
[1772612973966,4.85562785,2006.3,2005.7,7.68050633]
[1772612974172,0.002,2006.2,2005.7,7.68050633]
[1772612976186,0.002,2006.2,2005.7,2.83942989]
[1772612976359,4.85762785,2006.2,2005.7,2.83942989]
[1772612976884,0.002,2006.2,2005.8,4.84110326]
[1772612978292,0.002,2006.2,2005.9,1.24632334]
[1772612980281,0.002,2006.2,2005.8,4.98529338]
[1772612980671,0.002,2006.2,2005.8,9.82639664]
[1772612981290,0.002,2006.2,2005.8,4.98529338]
[1772612981508,0.002,2006.2,2005.9,1.599]
[1772612981975,0.002,2006.2,2006.0,4.84110326]
[1772612982174,2.002,2006.4,2006.0,4.84110326]
[1772612982376,2.002,2006.4,2006.1,1.24619909]
[1772612983391,2.002,2006.4,2006.0,1.24621308]
[1772612983776,2.002,2006.4,2006.0,6.08731634]
[1772612985580,0.002,2006.2,2006.0,6.08731634]
[1772612986075,0.002,2006.2,2006.0,1.24621308]
[1772612987802,0.002,2006.2,2005.9,2.8512777]
[1772612988794,7.02561838,2006.4,2005.9,2.8512777]
[1772612988994,5.02361838,2006.3,2005.8,5.11634947]
[1772612989193,2.002,2006.4,2005.9,6.74954305]
[1772612989381,2.002,2006.4,2006.0,5.14154305]
[1772612989813,0.002,2006.6,2006.0,5.14154305]
[1772612990218,0.002,2006.6,2006.1,5.14154305]
[1772612990482,0.002,2006.6,2006.2,6.38768002]
[1772612990682,0.002,2006.6,2006.3,1.61]
[1772612991503,0.002,2006.6,2006.2,1.24613697]
[1772612991701,0.002,2006.6,2006.3,1.611]
[1772612992497,0.002,2006.6,2006.3,2.85706667]
[1772612992707,0.002,2006.6,2006.3,1.611]
[1772612993199,5.02561838,2006.6,2006.3,1.611]
[1772612993584,5.02561838,2006.6,2006.3,1.49913808]
[1772612993783,5.02561838,2006.6,2006.0,2.86021889]
[1772612994599,6.27156165,2006.6,2006.0,2.86024892]
[1772612994804,6.27156165,2006.6,2005.9,2.86127561]
[1772612996626,6.27156165,2006.6,2005.8,6.60232373]
[1772612996917,6.27156165,2006.6,2005.8,2.86338548]
[1772612997611,6.27156165,2006.6,2006.2,0.001]
[1772612998020,5.02361838,2006.3,2006.2,0.001]
[1772612999222,6.27151117,2006.6,2006.2,0.001]
[1772612999519,6.27151117,2006.6,2006.0,0.001]
[1772613000315,5.02561838,2006.6,2006.0,0.001]
[1772613000617,5.02561838,2006.8,2006.2,2.33691029]
[1772613000935,6.26953328,2006.6,2006.1,1.24613705]
[1772613001240,6.26953328,2006.6,2006.0,0.001]
[1772613001509,0.002,2006.5,2006.0,1.24726058]
[1772613001715,5.02561838,2006.5,2006.0,1.24726058]
[1772613002484,0.002,2006.5,2006.0,1.24726058]
[1772613003110,5.02361838,2006.7,2006.0,6.38880363]
[1772613003314,0.002,2006.8,2006.1,5.14154305]
[1772613003613,0.002,2006.8,2006.4,5.14154305]
[1772613003818,0.002,2006.8,2006.4,6.76354305]
[1772613004111,5.02561838,2006.8,2006.2,3.95891029]
[1772613004609,6.27140723,2006.8,2006.2,6.76354305]
[1772613004809,6.27140723,2006.8,2006.1,3.95991029]
[1772613005246,6.27140723,2006.8,2006.2,1.24613697]
[1772613006046,6.27140723,2006.8,2006.2,6.38768002]
[1772613006047,0.002,2006.8,2006.2,6.38768002]
[1772613006326,0.002,2006.8,2006.0,0.001]
[1772613006327,5.02361838,2006.7,2006.0,0.001]
[1772613006497,5.02361838,2006.7,2006.0,1.2472596]
[1772613007321,6.26950694,2006.6,2006.0,0.001]
[1772613010423,6.27140919,2006.8,2006.0,5.14254305]
[1772613010803,6.27140919,2006.8,2006.2,0.001]
[1772613011003,0.002,2006.4,2006.2,0.001]
[1772613011410,0.002,2006.6,2006.2,5.14254305]
[1772613012999,5.02561838,2006.6,2006.2,0.001]
[1772613013423,6.27154375,2006.6,2006.2,0.001]
[1772613014202,5.02561838,2006.6,2006.2,0.001]
[1772613014700,0.002,2006.6,2006.2,5.14254305]
[1772613015130,0.002,2006.6,2006.2,0.001]
[1772613015131,5.02561838,2006.6,2006.2,0.001]
[1772613015306,0.002,2006.6,2006.2,1.24713697]
[1772613015511,0.002,2006.6,2006.2,6.38868002]
[1772613016027,5.02561838,2006.6,2006.2,0.001]
[1772613016322,6.27151078,2006.6,2006.2,0.001]
[1772613016625,6.27151078,2006.6,2006.0,0.001]
[1772613016835,6.27051078,2006.6,2006.0,0.001]
[1772613017814,5.02361838,2006.5,2006.0,0.001]
[1772613018411,4.63421858,2006.4,2006.0,0.001]
[1772613019329,1.2468924,2006.6,2006.0,0.001]
[1772613019330,5.88111098,2006.6,2006.0,0.001]
[1772613019635,4.63421858,2006.5,2006.0,0.001]
[1772613020816,0.001,2006.6,2006.0,4.65348159]
[1772613021150,0.001,2006.6,2006.1,4.71853665]
[1772613021439,0.002,2006.8,2006.4,5.9645494]
[1772613021614,0.002,2006.8,2006.5,4.71853665]
[1772613021819,0.002,2006.9,2006.6,4.71853665]
[1772613022016,0.002,2006.9,2006.8,0.001]
[1772613022321,0.002,2007.3,2006.8,0.001]
[1772613022635,0.002,2007.2,2006.8,0.001]
[1772613023349,0.002,2006.9,2006.8,0.001]
[1772613023715,0.002,2007.2,2006.8,1.2467644]
[1772613023914,0.001,2007.2,2006.9,4.71853665]
[1772613024109,0.002,2007.3,2006.9,4.71853665]
[1772613024326,0.003,2007.3,2006.9,4.71853665]
[1772613024927,0.002,2007.3,2006.9,4.71853665]
[1772613025813,0.001,2007.2,2006.6,9.93861896]
[1772613026020,4.88292788,2007.2,2006.6,2.8798642]
[1772613026226,0.001,2007.1,2006.6,7.59840085]
[1772613026626,0.002,2007.3,2006.6,7.59840085]
[1772613026842,0.001,2007.2,2006.6,7.59840085]
[1772613029720,0.001,2007.1,2006.7,4.71853665]
[1772613030025,0.002,2007.3,2006.7,4.71853665]
[1772613030348,0.002,2007.3,2006.9,4.71853665]
[1772613030531,0.002,2007.3,2006.8,1.2457644]
[1772613030532,0.002,2007.3,2007.0,6.35453665]
[1772613030844,0.002,2007.3,2007.1,4.71853665]
[1772613031050,0.002,2007.3,2007.0,1.636]
[1772613031746,4.88392788,2007.3,2006.7,2.88280375]
[1772613032321,6.12943405,2007.3,2006.7,2.88280375]
[1772613033617,4.88392788,2007.3,2006.7,2.88280375]
[1772613033830,6.12938474,2007.3,2006.7,2.88280375]
[1772613034330,4.88192788,2007.2,2006.7,2.88281936]
[1772613035623,2.002,2007.3,2006.8,4.71853665]
[1772613035835,0.002,2007.1,2006.8,4.71853665]
[1772613036361,0.002,2007.1,2006.9,5.96423897]
[1772613036555,2.002,2007.3,2006.9,5.96423897]
[1772613037053,2.002,2007.3,2007.0,4.71853665]
[1772613037251,2.002,2007.3,2007.1,1.64]
[1772613037448,0.002,2007.6,2007.1,6.35853665]
[1772613038431,0.002,2007.6,2007.2,1.24551614]
[1772613038751,0.002,2007.6,2007.1,5.96407327]
[1772613038953,0.002,2007.6,2007.2,1.641]
[1772613040823,0.002,2007.6,2007.3,1.24545409]
[1772613041027,0.002,2007.6,2007.2,2.88646894]
[1772613041265,0.002,2007.6,2007.2,2.88651062]
[1772613041929,0.002,2007.6,2007.2,7.60504727]
[1772613042727,0.002,2007.6,2007.2,7.55516449]
[1772613043438,0.002,2007.6,2007.2,2.83662784]
[1772613044728,4.88392788,2007.6,2007.2,1.59111722]
[1772613045230,4.88192788,2007.5,2007.2,2.8366314]
[1772613045449,4.88192788,2007.5,2007.1,2.8905382]
[1772613045649,4.88192788,2007.5,2007.1,1.2455382]
[1772613045847,0.002,2007.6,2007.1,7.60907485]
[1772613047159,0.002,2007.6,2007.3,4.71853665]
[1772613048159,0.002,2007.4,2007.3,4.71853665]
[1772613048341,0.002,2007.6,2007.3,4.71753665]
[1772613049253,0.002,2007.6,2007.4,1.24539204]
[1772613049642,0.002,2007.6,2007.3,9.69910484]
[1772613049643,0.002,2007.6,2007.3,5.96294796]
[1772613050661,2.002,2007.6,2007.3,5.96294796]
[1772613052062,4.65599945,2008.3,2007.7,1.24070851]
[1772613052262,4.65599945,2008.3,2007.8,6.70430025]
[1772613053766,4.65599945,2008.3,2007.9,1.24508192]
[1772613054152,4.65499945,2008.3,2007.9,1.24508192]
[1772613054468,0.34927915,2008.6,2008.0,5.05430025]
[1772613054663,0.34927915,2008.6,2008.3,6.29500876]
[1772613054963,4.65599945,2008.9,2008.4,1.652]
[1772613055666,4.65599945,2008.8,2008.1,1.652]
[1772613055864,4.65599945,2008.5,2007.8,1.652]
[1772613056370,4.65599945,2008.8,2007.9,5.05430025]
[1772613057555,5.90054398,2008.8,2008.1,5.05430025]
[1772613057752,5.90052533,2008.8,2008.2,6.70730025]
[1772613057957,4.65599945,2008.8,2008.2,6.70730025]
[1772613058769,4.65599945,2009.0,2008.3,5.05430025]
[1772613060078,5.9004385,2009.0,2008.4,1.24477195]
[1772613060471,1.24438361,2009.1,2008.4,6.2990722]
[1772613060659,5.90761018,2009.2,2008.6,5.05430025]
[1772613061053,0.002,2008.8,2008.4,6.2990722]
[1772613061259,4.65799945,2008.8,2008.3,2.89979175]
[1772613062072,5.90253759,2008.8,2008.3,2.89979175]
[1772613062476,4.65799945,2008.8,2008.3,2.89979175]
[1772613062676,0.002,2008.8,2008.4,5.05430025]
[1772613062852,9.64050749,2009.2,2008.4,6.29400876]
[1772613062853,5.90759177,2009.2,2008.4,6.29400876]
[1772613063273,1.25158667,2009.2,2008.4,6.29400876]
[1772613064046,1.25158667,2009.2,2008.4,6.29300876]
[1772613064251,0.00729877,2009.2,2008.5,6.29901023]
[1772613064678,0.00729877,2009.2,2008.6,5.05430025]
[1772613064987,1.25157549,2009.2,2008.7,6.71030025]
[1772613065154,5.90757494,2009.2,2008.7,1.656]
[1772613065655,4.65599945,2009.1,2008.5,10.16901023]
[1772613065876,4.65599945,2009.1,2008.6,1.656]
[1772613066188,1.24440019,2009.0,2008.6,1.656]
[1772613066486,5.90039964,2009.0,2008.6,2.90064605]
[1772613066973,4.65599945,2009.0,2008.6,2.90064605]
[1772613067359,1.25162377,2009.2,2008.6,2.90064605]
[1772613067563,0.00729877,2009.2,2008.7,5.05430025]
[1772613067763,1.24396676,2009.7,2009.0,6.29500876]
[1772613067964,1.24396676,2009.7,2009.1,1.657]
[1772613068188,1.24409056,2009.5,2008.8,1.24452409]
[1772613068479,4.65599945,2009.4,2008.7,2.9015382]
[1772613068674,4.65599945,2009.4,2008.6,2.90259966]
[1772613070465,5.90021385,2009.3,2008.6,2.90259966]
[1772613071890,4.65599945,2009.3,2008.6,1.24459966]
[1772613072091,4.65599945,2009.3,2008.6,2.90359966]
[1772613072293,4.65599945,2009.1,2008.4,1.659]
[1772613072594,4.65599945,2009.1,2008.4,2.90376451]
[1772613072595,4.65599945,2008.9,2008.4,2.90376451]
[1772613072981,4.65599945,2008.9,2008.4,1.24476451]
[1772613073779,4.65599945,2008.9,2008.1,1.2449116]
[1772613074194,4.65599945,2008.9,2008.3,0.001]
[1772613074375,4.65599945,2008.5,2008.3,0.001]
[1772613075657,1.24464801,2008.6,2008.3,0.001]
[1772613075860,5.90064746,2008.6,2008.3,0.001]
[1772613077086,5.90064829,2008.6,2008.3,0.001]
[1772613077273,4.65599945,2008.6,2008.3,0.001]
[1772613077474,5.90065396,2008.6,2008.3,0.001]
[1772613079801,4.62712905,2008.5,2008.0,1.661]
[1772613080192,4.62712905,2008.5,2008.0,0.001]
[1772613080792,4.62712905,2008.5,2008.0,1.24601633]
[1772613081297,5.87186128,2008.5,2008.0,0.001]
[1772613081466,5.03772834,2008.7,2008.0,4.76533824]
[1772613081798,6.28222724,2008.9,2008.2,4.76433824]
[1772613083476,6.2820666,2009.1,2008.3,1.24483393]
[1772613083674,5.03772834,2009.1,2008.4,4.76433824]
[1772613083916,1.24629528,2009.2,2008.5,4.76433824]
[1772613084076,6.28402362,2009.2,2008.5,4.76433824]
[1772613084699,5.03972834,2009.2,2008.6,6.42433824]
[1772613084883,0.002,2009.2,2008.7,4.76433824]
[1772613085111,0.002,2009.2,2008.8,4.76433824]
[1772613085411,0.002,2009.4,2008.8,4.76433824]
[1772613085709,0.002,2009.4,2009.0,4.76433824]
[1772613086909,0.002,2009.4,2009.1,1.66]
[1772613087774,0.002,2009.4,2009.2,1.24427632]
[1772613088575,0.002,2009.4,2009.1,2.90429189]
[1772613088771,0.002,2009.4,2009.1,2.90433567]
[1772613089780,0.002,2009.4,2009.1,1.24433567]
[1772613089981,0.002,2009.4,2008.9,5.1144101]
[1772613090620,0.002,2009.4,2009.0,4.76433824]
[1772613091524,1.24395233,2009.8,2009.0,4.76433824]
[1772613091826,1.24395233,2009.8,2009.1,1.24433826]
[1772613092007,1.24395233,2009.8,2009.2,4.76433824]
[1772613093929,0.33040547,2010.0,2009.4,4.76433824]
[1772613094081,1.3358672,2010.1,2009.6,4.76433824]
[1772613094082,1.24376148,2010.1,2009.6,4.76433824]
[1772613095713,6.28148982,2010.1,2009.4,4.76433824]
[1772613096105,1.24369392,2010.2,2009.6,4.76433824]
[1772613096301,10.01228092,2010.3,2009.6,4.76433824]
[1772613096302,5.03772834,2010.3,2009.6,4.76433824]
[1772613096815,6.28124495,2010.5,2009.6,4.76433824]
[1772613097183,5.03772834,2010.9,2009.6,4.76433824]
[1772613097379,3.56563082,2011.5,2010.4,6.00504675]
[1772613097380,5.03772834,2011.2,2010.4,6.00504675]
[1772613097611,2.38665955,2012.0,2010.7,4.76433824]
[1772613097814,6.28031997,2012.0,2011.2,4.76433824]
[1772613098020,5.03772834,2012.0,2011.2,1.24303898]
[1772613098312,5.03772834,2012.0,2010.5,1.30624451]
[1772613098313,5.03772834,2011.3,2010.3,6.00793372]
[1772613098480,5.03772834,2011.1,2010.0,6.00809911]
[1772613098682,5.03772834,2010.9,2009.8,1.24390486]